[Event "Early-Titled-Tuesday-Blitz-January-30-2024"]
[Site "Chess.com"]
[Date "2024.01.30"]
[Round "8"]
[White "Pelopidass"]
[Black "NastyaHn"]
[Result "1-0"]
[WhiteElo "2570"]
[BlackElo "2382"]
[TimeControl "180+1"]
[EndTime "9:30:11 PST"]
[Termination "Pelopidass won on time"]

1. d4 {[%clk 0:03:00]} 1... d5 {[%clk 0:02:58.7]} 2. Nf3 {[%clk 0:03:00.5]} 2...
Nf6 {[%clk 0:02:58.2]} 3. c4 {[%clk 0:03:00.8]} 3... e6 {[%clk 0:02:58.1]} 4. e3
{[%clk 0:03:00.5]} 4... c5 {[%clk 0:02:56.9]} 5. a3 {[%clk 0:02:57.8]} 5... dxc4
{[%clk 0:02:52.3]} 6. Bxc4 {[%clk 0:02:56.7]} 6... cxd4 {[%clk 0:02:52.5]} 7.
exd4 {[%clk 0:02:53.9]} 7... Nc6 {[%clk 0:02:52.7]} 8. O-O {[%clk 0:02:53.3]}
8... Be7 {[%clk 0:02:51.8]} 9. Nc3 {[%clk 0:02:53.4]} 9... O-O {[%clk
0:02:51.9]} 10. Ba2 {[%clk 0:02:38.4]} 10... b6 {[%clk 0:02:35.9]} 11. Re1
{[%clk 0:02:32.5]} 11... Bb7 {[%clk 0:02:34.8]} 12. Bg5 {[%clk 0:02:28.8]} 12...
h6 {[%clk 0:02:33.3]} 13. Bh4 {[%clk 0:02:28]} 13... Rc8 {[%clk 0:02:15.6]} 14.
Rc1 {[%clk 0:02:26.1]} 14... Na5 {[%clk 0:02:12.8]} 15. Ne5 {[%clk 0:02:18.5]}
15... Nc6 {[%clk 0:02:02.3]} 16. Nf3 {[%clk 0:01:32.6]} 16... Na5 {[%clk
0:01:51.3]} 17. Qd3 {[%clk 0:01:18.2]} 17... Bxf3 {[%clk 0:01:31.9]} 18. gxf3
{[%clk 0:01:10.8]} 18... Nh5 {[%clk 0:01:26.7]} 19. Bg3 {[%clk 0:01:07.5]} 19...
Nxg3 {[%clk 0:01:15.8]} 20. hxg3 {[%clk 0:01:08.4]} 20... Bf6 {[%clk 0:01:16.1]}
21. d5 {[%clk 0:00:59]} 21... Bxc3 {[%clk 0:01:05.8]} 22. Rxc3 {[%clk
0:00:53.9]} 22... Rxc3 {[%clk 0:01:05.8]} 23. bxc3 {[%clk 0:00:53.3]} 23... exd5
{[%clk 0:01:05.6]} 24. Bxd5 {[%clk 0:00:53.6]} 24... Nb7 {[%clk 0:00:55.3]} 25.
c4 {[%clk 0:00:46.8]} 25... Nc5 {[%clk 0:00:55.1]} 26. Qf5 {[%clk 0:00:45.8]}
26... Qc7 {[%clk 0:00:18.2]} 27. Kg2 {[%clk 0:00:42.3]} 27... Kh8 {[%clk
0:00:16.7]} 28. g4 {[%clk 0:00:40.3]} 28... a5 {[%clk 0:00:09.9]} 29. Rh1 {[%clk
0:00:37.5]} 29... Qd6 {[%clk 0:00:08.3]} 30. g5 {[%clk 0:00:35.5]} 30... Kg8
{[%clk 0:00:08.2]} 31. gxh6 {[%clk 0:00:34.5]} 31... gxh6 {[%clk 0:00:08.5]} 32.
Rh4 {[%clk 0:00:31.8]} 32... Kh8 {[%clk 0:00:07.2]} 33. Rg4 {[%clk 0:00:21.7]}
33... Nd7 {[%clk 0:00:04.3]} 34. f4 {[%clk 0:00:15]} 34... Nf6 {[%clk
0:00:02.5]} 35. Rg3 {[%clk 0:00:13.2]} 35... Nxd5 {[%clk 0:00:02.6]} 36. cxd5
{[%clk 0:00:14.1]} 36... b5 {[%clk 0:00:01.7]} 37. Qg4 {[%clk 0:00:11.4]} 1-0

[Event "Early-Titled-Tuesday-Blitz-January-30-2024"]
[Site "Chess.com"]
[Date "2024.01.30"]
[Round "8"]
[White "NikolaGry"]
[Black "Sjakkerntobi"]
[Result "1-0"]
[WhiteElo "2714"]
[BlackElo "2512"]
[TimeControl "180+1"]
[EndTime "9:30:15 PST"]
[Termination "NikolaGry won by resignation"]

1. e4 {[%clk 0:03:00.9]} 1... e6 {[%clk 0:02:59.5]} 2. Nf3 {[%clk 0:03:00.2]}
2... d5 {[%clk 0:02:59.9]} 3. Nc3 {[%clk 0:02:59.7]} 3... d4 {[%clk 0:03:00.1]}
4. Ne2 {[%clk 0:02:59.3]} 4... c5 {[%clk 0:03:00.8]} 5. c3 {[%clk 0:02:59.2]}
5... Nf6 {[%clk 0:02:47.7]} 6. Ng3 {[%clk 0:02:54]} 6... a6 {[%clk 0:02:43.2]}
7. cxd4 {[%clk 0:02:44.1]} 7... cxd4 {[%clk 0:02:43.5]} 8. Bc4 {[%clk
0:02:39.8]} 8... Nc6 {[%clk 0:02:43.1]} 9. d3 {[%clk 0:02:36.8]} 9... Na5 {[%clk
0:02:28]} 10. Bb3 {[%clk 0:02:25.5]} 10... Nxb3 {[%clk 0:02:22.6]} 11. Qxb3
{[%clk 0:02:24.9]} 11... Bc5 {[%clk 0:02:10.7]} 12. O-O {[%clk 0:02:22.4]} 12...
O-O {[%clk 0:02:10.5]} 13. Bf4 {[%clk 0:02:18.5]} 13... Qb6 {[%clk 0:02:03.3]}
14. Rfc1 {[%clk 0:01:56.6]} 14... Qxb3 {[%clk 0:01:46.6]} 15. axb3 {[%clk
0:01:55.7]} 15... Bb6 {[%clk 0:01:40.3]} 16. Bd6 {[%clk 0:01:38.1]} 16... Rd8
{[%clk 0:01:38]} 17. Bc7 {[%clk 0:01:35.4]} 17... Bxc7 {[%clk 0:01:37.1]} 18.
Rxc7 {[%clk 0:01:35.1]} 18... Bd7 {[%clk 0:01:32.5]} 19. Rac1 {[%clk 0:01:19.3]}
19... Bb5 {[%clk 0:01:26.4]} 20. Ne5 {[%clk 0:01:15.5]} 20... Nd7 {[%clk
0:01:19.9]} 21. Nxd7 {[%clk 0:01:13]} 21... Rxd7 {[%clk 0:01:20.3]} 22. Rxd7
{[%clk 0:01:08.3]} 22... Bxd7 {[%clk 0:01:21.2]} 23. Ne2 {[%clk 0:00:30]} 23...
e5 {[%clk 0:01:16.4]} 24. f4 {[%clk 0:00:26.8]} 24... f6 {[%clk 0:01:12.5]} 25.
fxe5 {[%clk 0:00:25.7]} 25... fxe5 {[%clk 0:01:13.4]} 26. Rc5 {[%clk 0:00:25.1]}
26... Re8 {[%clk 0:01:08.9]} 27. Kf2 {[%clk 0:00:21.2]} 27... Bb5 {[%clk
0:01:08.2]} 28. Nc1 {[%clk 0:00:20.5]} 28... Kf7 {[%clk 0:01:05.9]} 29. Ke2
{[%clk 0:00:20.4]} 29... Ke6 {[%clk 0:01:04.2]} 30. b4 {[%clk 0:00:20.3]} 30...
Kd6 {[%clk 0:01:04.2]} 31. Nb3 {[%clk 0:00:19.6]} 31... b6 {[%clk 0:01:04.4]}
32. Rc1 {[%clk 0:00:19.2]} 32... Rf8 {[%clk 0:01:04.6]} 33. Nd2 {[%clk
0:00:18.9]} 33... h5 {[%clk 0:00:54.7]} 34. Nc4+ {[%clk 0:00:16.7]} 34... Bxc4
{[%clk 0:00:55]} 35. Rxc4 {[%clk 0:00:16.5]} 35... g5 {[%clk 0:00:47.2]} 36. Rc1
{[%clk 0:00:15.7]} 36... Rf7 {[%clk 0:00:45.4]} 37. Ra1 {[%clk 0:00:15]} 37...
Kc6 {[%clk 0:00:42.8]} 38. Rxa6 {[%clk 0:00:14.2]} 38... Kb5 {[%clk 0:00:43.3]}
39. Ra8 {[%clk 0:00:13.9]} 39... Rc7 {[%clk 0:00:43]} 40. Re8 {[%clk 0:00:12.5]}
40... Rc2+ {[%clk 0:00:42.5]} 41. Kf3 {[%clk 0:00:12.6]} 41... Rd2 {[%clk
0:00:33.2]} 42. Rxe5+ {[%clk 0:00:11.9]} 42... Kxb4 {[%clk 0:00:33.9]} 43. Rxg5
{[%clk 0:00:11.5]} 43... Rxd3+ {[%clk 0:00:34.5]} 44. Kf4 {[%clk 0:00:11.5]}
44... Re3 {[%clk 0:00:26.1]} 45. Rxh5 {[%clk 0:00:10.3]} 45... Re1 {[%clk
0:00:25.5]} 46. Rd5 {[%clk 0:00:09.7]} 46... Kc4 {[%clk 0:00:25.5]} 47. h4
{[%clk 0:00:09.5]} 47... Rf1+ {[%clk 0:00:20.9]} 48. Ke5 {[%clk 0:00:09.2]}
48... d3 {[%clk 0:00:20.9]} 49. Rd4+ {[%clk 0:00:09]} 49... Kc5 {[%clk
0:00:20.5]} 1-0

[Event "Early-Titled-Tuesday-Blitz-January-30-2024"]
[Site "Chess.com"]
[Date "2024.01.30"]
[Round "8"]
[White "IngOscarArdila"]
[Black "anasta10"]
[Result "1-0"]
[WhiteElo "2348"]
[BlackElo "2493"]
[TimeControl "180+1"]
[EndTime "9:30:15 PST"]
[Termination "IngOscarArdila won by resignation"]

1. d4 {[%clk 0:02:56.5]} 1... Nf6 {[%clk 0:02:59.3]} 2. c4 {[%clk 0:02:56.6]}
2... g6 {[%clk 0:02:57.8]} 3. Nc3 {[%clk 0:02:56.4]} 3... Bg7 {[%clk 0:02:56.9]}
4. Nf3 {[%clk 0:02:56.7]} 4... O-O {[%clk 0:02:56]} 5. e3 {[%clk 0:02:56.8]}
5... d6 {[%clk 0:02:56.5]} 6. Be2 {[%clk 0:02:57.1]} 6... c5 {[%clk 0:02:56.3]}
7. O-O {[%clk 0:02:55.8]} 7... cxd4 {[%clk 0:02:56.4]} 8. Nxd4 {[%clk
0:02:55.6]} 8... Nc6 {[%clk 0:02:56.7]} 9. Bf3 {[%clk 0:02:54.3]} 9... Nxd4
{[%clk 0:02:56.9]} 10. exd4 {[%clk 0:02:54.5]} 10... e5 {[%clk 0:02:56]} 11. Bg5
{[%clk 0:02:51.2]} 11... h6 {[%clk 0:02:55.3]} 12. Bh4 {[%clk 0:02:50.7]} 12...
g5 {[%clk 0:02:31.5]} 13. Bg3 {[%clk 0:02:50.1]} 13... Qe7 {[%clk 0:01:56.1]}
14. Re1 {[%clk 0:02:47.2]} 14... Nd7 {[%clk 0:01:40.1]} 15. Nd5 {[%clk
0:02:45.1]} 15... Qd8 {[%clk 0:01:40.2]} 16. dxe5 {[%clk 0:02:34.4]} 16... Nxe5
{[%clk 0:01:38.1]} 17. Be4 {[%clk 0:02:28.5]} 17... f5 {[%clk 0:01:34.5]} 18.
Bxe5 {[%clk 0:02:25.9]} 18... Bxe5 {[%clk 0:01:33.9]} 19. Bd3 {[%clk 0:02:21.2]}
19... Be6 {[%clk 0:01:27.1]} 20. Qh5 {[%clk 0:02:18.5]} 20... Kg7 {[%clk
0:01:26.6]} 21. f4 {[%clk 0:02:13.2]} 21... Bd4+ {[%clk 0:01:14.5]} 22. Kh1
{[%clk 0:02:12.6]} 22... Bf7 {[%clk 0:00:43.9]} 23. Qf3 {[%clk 0:02:02.2]} 23...
Bg6 {[%clk 0:00:33.5]} 24. Re7+ {[%clk 0:01:58.8]} 24... Rf7 {[%clk 0:00:31.1]}
25. Rae1 {[%clk 0:01:56.4]} 25... g4 {[%clk 0:00:18.8]} 26. Qd1 {[%clk
0:01:45.7]} 26... Bf6 {[%clk 0:00:18.4]} 27. Rxf7+ {[%clk 0:01:45.1]} 27... Bxf7
{[%clk 0:00:18.4]} 28. Bxf5 {[%clk 0:01:43.4]} 28... h5 {[%clk 0:00:15.4]} 29.
Be6 {[%clk 0:01:35.3]} 29... Qf8 {[%clk 0:00:12.7]} 30. Nxf6 {[%clk 0:01:19.4]}
30... Kxf6 {[%clk 0:00:11.4]} 31. Qd4+ {[%clk 0:01:18.3]} 31... Kg6 {[%clk
0:00:11.8]} 32. f5+ {[%clk 0:01:14.2]} 32... Kh7 {[%clk 0:00:12]} 33. h3 {[%clk
0:01:09.2]} 33... Re8 {[%clk 0:00:08.1]} 34. hxg4 {[%clk 0:01:07.8]} 34... Bxe6
{[%clk 0:00:07.9]} 35. fxe6 {[%clk 0:01:04.9]} 35... hxg4 {[%clk 0:00:08]} 36.
Qxg4 {[%clk 0:01:00.8]} 36... Qh6+ {[%clk 0:00:08.2]} 37. Kg1 {[%clk 0:01:01]}
37... Re7 {[%clk 0:00:08.6]} 38. Qf5+ {[%clk 0:01:00.5]} 38... Qg6 {[%clk
0:00:08.6]} 39. Qh3+ {[%clk 0:00:55]} 39... Kg8 {[%clk 0:00:07.2]} 40. b3 {[%clk
0:00:48.9]} 40... Qf6 {[%clk 0:00:03.6]} 41. Qg4+ {[%clk 0:00:47.1]} 41... Rg7
{[%clk 0:00:03.6]} 42. Qe2 {[%clk 0:00:45]} 42... Qd4+ {[%clk 0:00:03.1]} 43.
Qe3 {[%clk 0:00:42.4]} 43... Qg4 {[%clk 0:00:03.3]} 44. Re2 {[%clk 0:00:41.7]}
44... Re7 {[%clk 0:00:03.7]} 45. Qe4 {[%clk 0:00:32.4]} 45... Qg5 {[%clk
0:00:02.7]} 46. Rf2 {[%clk 0:00:30.9]} 46... Qc5 {[%clk 0:00:03]} 47. Kf1 {[%clk
0:00:29.1]} 47... Rg7 {[%clk 0:00:02.9]} 48. e7 {[%clk 0:00:27.8]} 48... Rxe7
{[%clk 0:00:02.7]} 49. Qxe7 {[%clk 0:00:26.2]} 1-0

[Event "Early-Titled-Tuesday-Blitz-January-30-2024"]
[Site "Chess.com"]
[Date "2024.01.30"]
[Round "8"]
[White "Nouali_Mohamed"]
[Black "VeraVujovic"]
[Result "1-0"]
[WhiteElo "2499"]
[BlackElo "2253"]
[TimeControl "180+1"]
[EndTime "9:30:15 PST"]
[Termination "Nouali_Mohamed won by resignation"]

1. e4 {[%clk 0:03:00.1]} 1... e5 {[%clk 0:02:58.6]} 2. Bc4 {[%clk 0:03:00.1]}
2... Nf6 {[%clk 0:02:55.4]} 3. Nc3 {[%clk 0:02:59.4]} 3... c6 {[%clk 0:02:52.1]}
4. d4 {[%clk 0:02:58.9]} 4... exd4 {[%clk 0:02:49.5]} 5. Qxd4 {[%clk 0:02:59.7]}
5... Qe7 {[%clk 0:02:44.1]} 6. Nge2 {[%clk 0:02:55]} 6... Qc5 {[%clk 0:02:33.8]}
7. Be3 {[%clk 0:02:44.4]} 7... Qxd4 {[%clk 0:02:27.9]} 8. Bxd4 {[%clk
0:02:45.3]} 8... Bb4 {[%clk 0:02:27.2]} 9. a3 {[%clk 0:02:33.8]} 9... Ba5 {[%clk
0:02:18.7]} 10. e5 {[%clk 0:02:28.6]} 10... Ne4 {[%clk 0:02:08.3]} 11. b4 {[%clk
0:02:25.8]} 11... Nxc3 {[%clk 0:02:06.3]} 12. Nxc3 {[%clk 0:02:21.2]} 12... Bc7
{[%clk 0:02:00.9]} 13. Ne4 {[%clk 0:02:17.8]} 13... O-O {[%clk 0:01:59.6]} 14.
O-O-O {[%clk 0:02:09.3]} 14... b5 {[%clk 0:01:46.2]} 15. Bb3 {[%clk 0:02:01.2]}
15... a5 {[%clk 0:01:45.7]} 16. f4 {[%clk 0:02:00.8]} 16... axb4 {[%clk
0:01:43.7]} 17. axb4 {[%clk 0:02:01.7]} 17... Na6 {[%clk 0:01:42.6]} 18. c3
{[%clk 0:02:00.8]} 18... Bb7 {[%clk 0:01:16.8]} 19. h4 {[%clk 0:01:58]} 19... h6
{[%clk 0:01:10.2]} 20. Rhe1 {[%clk 0:01:53.6]} 20... Rfe8 {[%clk 0:01:06.7]} 21.
g4 {[%clk 0:01:52.8]} 21... Nb8 {[%clk 0:00:42.6]} 22. g5 {[%clk 0:01:46.4]}
22... hxg5 {[%clk 0:00:41.2]} 23. hxg5 {[%clk 0:01:45.5]} 23... Ra1+ {[%clk
0:00:40.9]} 24. Kb2 {[%clk 0:01:44.4]} 24... Rxd1 {[%clk 0:00:41.1]} 25. Rxd1
{[%clk 0:01:45.3]} 25... d5 {[%clk 0:00:28.8]} 26. exd6 {[%clk 0:01:29.7]} 26...
Bd8 {[%clk 0:00:27.3]} 27. Nc5 {[%clk 0:01:17.5]} 27... Re2+ {[%clk 0:00:24.7]}
28. Kc1 {[%clk 0:01:15.4]} 28... Bc8 {[%clk 0:00:20.5]} 29. g6 {[%clk
0:01:13.6]} 29... Be6 {[%clk 0:00:20.3]} 30. Nxe6 {[%clk 0:01:08.8]} 30... fxe6
{[%clk 0:00:20.5]} 31. f5 {[%clk 0:01:09.3]} 31... Bg5+ {[%clk 0:00:17.4]} 32.
Kb1 {[%clk 0:01:09.7]} 32... Kf8 {[%clk 0:00:11.5]} 33. fxe6 {[%clk 0:01:07.2]}
33... Ke8 {[%clk 0:00:05.2]} 34. Rh1 {[%clk 0:01:02.3]} 34... Bh6 {[%clk
0:00:04.7]} 35. e7 {[%clk 0:00:48.2]} 35... Kd7 {[%clk 0:00:03.5]} 36. Rxh6
{[%clk 0:00:35.1]} 36... gxh6 {[%clk 0:00:03.5]} 37. g7 {[%clk 0:00:36]} 37...
Rg2 {[%clk 0:00:03.5]} 38. Bf7 {[%clk 0:00:35.6]} 38... Kxd6 {[%clk 0:00:02.6]}
39. e8=Q {[%clk 0:00:26.5]} 39... Nd7 {[%clk 0:00:03.3]} 40. g8=Q {[%clk
0:00:20]} 40... Rh2 {[%clk 0:00:03.3]} 41. Qg3+ {[%clk 0:00:19]} 1-0

[Event "Early-Titled-Tuesday-Blitz-January-30-2024"]
[Site "Chess.com"]
[Date "2024.01.30"]
[Round "8"]
[White "tacticthunder"]
[Black "rasmussvane"]
[Result "0-1"]
[WhiteElo "2813"]
[BlackElo "2977"]
[TimeControl "180+1"]
[EndTime "9:30:16 PST"]
[Termination "rasmussvane won by resignation"]

1. e4 {[%clk 0:02:59.9]} 1... c6 {[%clk 0:02:59.4]} 2. d4 {[%clk 0:02:59.6]}
2... d5 {[%clk 0:03:00.3]} 3. exd5 {[%clk 0:02:59.5]} 3... cxd5 {[%clk
0:03:01.2]} 4. Bd3 {[%clk 0:03:00]} 4... Nc6 {[%clk 0:03:01.5]} 5. c3 {[%clk
0:03:00.6]} 5... Nf6 {[%clk 0:03:01.3]} 6. h3 {[%clk 0:03:01.1]} 6... g6 {[%clk
0:02:57.3]} 7. Nf3 {[%clk 0:03:01.1]} 7... Bf5 {[%clk 0:02:57.3]} 8. O-O {[%clk
0:03:01.2]} 8... Bxd3 {[%clk 0:02:52.3]} 9. Qxd3 {[%clk 0:03:02.1]} 9... Bg7
{[%clk 0:02:52.9]} 10. Bf4 {[%clk 0:03:02.1]} 10... O-O {[%clk 0:02:46]} 11.
Nbd2 {[%clk 0:03:02.3]} 11... e6 {[%clk 0:02:44.5]} 12. Rfe1 {[%clk 0:03:01.4]}
12... a6 {[%clk 0:02:44.7]} 13. a4 {[%clk 0:02:51.5]} 13... Rc8 {[%clk
0:02:38.1]} 14. b4 {[%clk 0:02:46.4]} 14... Ne7 {[%clk 0:02:33.7]} 15. a5 {[%clk
0:02:36.3]} 15... Nf5 {[%clk 0:02:26.2]} 16. Nb3 {[%clk 0:02:34.7]} 16... Nd6
{[%clk 0:02:02.1]} 17. Nc5 {[%clk 0:01:55.5]} 17... Rc7 {[%clk 0:01:53.5]} 18.
Nd2 {[%clk 0:01:47.3]} 18... Re7 {[%clk 0:01:52.9]} 19. Re2 {[%clk 0:01:44.1]}
19... Rfe8 {[%clk 0:01:42.4]} 20. Rae1 {[%clk 0:01:44.1]} 20... Nh5 {[%clk
0:01:24.9]} 21. Bh2 {[%clk 0:01:43.1]} 21... Bh6 {[%clk 0:01:23.3]} 22. g3
{[%clk 0:01:08.5]} 22... Nf6 {[%clk 0:01:14.6]} 23. Nf3 {[%clk 0:01:06.1]} 23...
Nfe4 {[%clk 0:01:12.1]} 24. Ne5 {[%clk 0:01:06.2]} 24... f6 {[%clk 0:01:09.1]}
25. Ng4 {[%clk 0:01:05.1]} 25... Bg7 {[%clk 0:01:09.4]} 26. Ne3 {[%clk
0:00:59.7]} 26... Nxc5 {[%clk 0:01:04.8]} 27. dxc5 {[%clk 0:00:52.8]} 27... Nf7
{[%clk 0:01:00.6]} 28. Rd1 {[%clk 0:00:45.8]} 28... Ne5 {[%clk 0:00:59.8]} 29.
Qc2 {[%clk 0:00:44.7]} 29... Qc8 {[%clk 0:00:56]} 30. c4 {[%clk 0:00:32.8]}
30... d4 {[%clk 0:00:50.8]} 31. Ng4 {[%clk 0:00:24.4]} 31... d3 {[%clk
0:00:49.9]} 32. Rxd3 {[%clk 0:00:24.9]} 32... Nxd3 {[%clk 0:00:50.8]} 33. Qxd3
{[%clk 0:00:25.8]} 33... Qc6 {[%clk 0:00:44.4]} 34. Rd2 {[%clk 0:00:22.2]} 34...
f5 {[%clk 0:00:28.6]} 35. Ne3 {[%clk 0:00:21.4]} 35... Rf7 {[%clk 0:00:27]} 36.
g4 {[%clk 0:00:18.9]} 36... f4 {[%clk 0:00:26.7]} 37. Nd1 {[%clk 0:00:13.7]}
37... g5 {[%clk 0:00:17.1]} 38. f3 {[%clk 0:00:12.8]} 38... Bf6 {[%clk
0:00:16.6]} 39. Qd6 {[%clk 0:00:07.1]} 39... Qa4 {[%clk 0:00:14.6]} 40. Qd3
{[%clk 0:00:02.6]} 40... Rd8 {[%clk 0:00:14.1]} 41. Qe2 {[%clk 0:00:03.2]} 41...
Rxd2 {[%clk 0:00:13.6]} 42. Qxd2 {[%clk 0:00:04.1]} 42... Rd7 {[%clk 0:00:14.2]}
0-1

[Event "Early-Titled-Tuesday-Blitz-January-30-2024"]
[Site "Chess.com"]
[Date "2024.01.30"]
[Round "8"]
[White "ritanovikova"]
[Black "FLYD"]
[Result "1-0"]
[WhiteElo "2203"]
[BlackElo "2045"]
[TimeControl "180+1"]
[EndTime "9:30:16 PST"]
[Termination "ritanovikova won on time"]

1. e4 {[%clk 0:02:57]} 1... c6 {[%clk 0:03:00.4]} 2. d4 {[%clk 0:02:56.9]} 2...
d5 {[%clk 0:03:01.3]} 3. Nd2 {[%clk 0:02:57.1]} 3... dxe4 {[%clk 0:03:01.6]} 4.
Nxe4 {[%clk 0:02:58]} 4... Bf5 {[%clk 0:03:01.9]} 5. Ng3 {[%clk 0:02:58.2]} 5...
Bg6 {[%clk 0:03:02.6]} 6. h4 {[%clk 0:02:58.5]} 6... h6 {[%clk 0:03:03]} 7. h5
{[%clk 0:02:59]} 7... Bh7 {[%clk 0:03:03.2]} 8. Nf3 {[%clk 0:02:59.7]} 8... Nd7
{[%clk 0:03:03.2]} 9. Bd3 {[%clk 0:03:00]} 9... Bxd3 {[%clk 0:03:03.8]} 10. Qxd3
{[%clk 0:03:00.7]} 10... e6 {[%clk 0:03:04.2]} 11. Bf4 {[%clk 0:02:58.8]} 11...
Qa5+ {[%clk 0:03:01.3]} 12. c3 {[%clk 0:02:57.1]} 12... Ngf6 {[%clk 0:02:59.6]}
13. Qc4 {[%clk 0:02:51]} 13... Be7 {[%clk 0:02:53.7]} 14. O-O-O {[%clk
0:02:50.7]} 14... O-O {[%clk 0:02:48.6]} 15. Kb1 {[%clk 0:02:50.7]} 15... Rac8
{[%clk 0:02:48.1]} 16. Ne5 {[%clk 0:02:42.9]} 16... c5 {[%clk 0:02:30.4]} 17.
Nxd7 {[%clk 0:02:36.9]} 17... Nxd7 {[%clk 0:02:27.7]} 18. d5 {[%clk 0:02:36.7]}
18... e5 {[%clk 0:02:22.9]} 19. d6 {[%clk 0:02:23.1]} 19... Bf6 {[%clk
0:02:22.5]} 20. Bxh6 {[%clk 0:02:11.2]} 20... gxh6 {[%clk 0:01:54]} 21. Qg4+
{[%clk 0:02:09.3]} 21... Kh8 {[%clk 0:01:53.1]} 22. Qxd7 {[%clk 0:02:08.6]}
22... Rcd8 {[%clk 0:01:44.9]} 23. Qf5 {[%clk 0:02:07.1]} 23... Bg7 {[%clk
0:01:41.3]} 24. Qe4 {[%clk 0:02:00]} 24... f6 {[%clk 0:01:05.8]} 25. Nf5 {[%clk
0:01:58.9]} 25... Rf7 {[%clk 0:01:06.1]} 26. Rh3 {[%clk 0:01:38.1]} 26... Qb5
{[%clk 0:00:53.3]} 27. Rg3 {[%clk 0:01:33.8]} 27... Qd7 {[%clk 0:00:49.7]} 28.
Rg6 {[%clk 0:01:28.6]} 28... Qe6 {[%clk 0:00:42]} 29. Nxh6 {[%clk 0:01:24.6]}
29... Bxh6 {[%clk 0:00:21.7]} 30. Rxh6+ {[%clk 0:01:25.5]} 30... Kg8 {[%clk
0:00:21.9]} 31. Rg6+ {[%clk 0:01:16.4]} 31... Kf8 {[%clk 0:00:15.8]} 32. h6
{[%clk 0:01:14.5]} 32... Ke8 {[%clk 0:00:08.5]} 33. Rg8+ {[%clk 0:01:11.4]}
33... Kd7 {[%clk 0:00:07.8]} 34. Rxd8+ {[%clk 0:01:11.2]} 34... Kxd8 {[%clk
0:00:08.3]} 35. h7 {[%clk 0:01:10.9]} 35... Qe8 {[%clk 0:00:07.9]} 36. Rh1
{[%clk 0:00:52.9]} 36... Qh8 {[%clk 0:00:06.2]} 37. Qg6 {[%clk 0:00:52.1]} 37...
Rf8 {[%clk 0:00:04.3]} 38. Qh6 {[%clk 0:00:45.3]} 38... Kd7 {[%clk 0:00:03.3]}
39. Rh3 {[%clk 0:00:40.2]} 39... Kxd6 {[%clk 0:00:02.3]} 40. Rg3 {[%clk
0:00:39]} 40... Kc7 {[%clk 0:00:01.6]} 41. Rg7+ {[%clk 0:00:34.9]} 41... Kc6
{[%clk 0:00:02.2]} 42. Qg6 {[%clk 0:00:33.6]} 42... Rd8 {[%clk 0:00:02.3]} 43.
Rg8 {[%clk 0:00:31.7]} 43... Rxg8 {[%clk 0:00:01.2]} 44. hxg8=Q {[%clk
0:00:31.5]} 44... Qh1+ {[%clk 0:00:01.4]} 45. Kc2 {[%clk 0:00:31.8]} 1-0

[Event "Early-Titled-Tuesday-Blitz-January-30-2024"]
[Site "Chess.com"]
[Date "2024.01.30"]
[Round "8"]
[White "C_K_G"]
[Black "Felix-Rose"]
[Result "1-0"]
[WhiteElo "2164"]
[BlackElo "2344"]
[TimeControl "180+1"]
[EndTime "9:30:18 PST"]
[Termination "C_K_G won on time"]

1. e4 {[%clk 0:02:58.5]} 1... e5 {[%clk 0:02:59.4]} 2. Nf3 {[%clk 0:02:57.9]}
2... Nc6 {[%clk 0:02:59.5]} 3. Bc4 {[%clk 0:02:57.9]} 3... Nf6 {[%clk
0:02:59.6]} 4. Ng5 {[%clk 0:02:57.3]} 4... d5 {[%clk 0:02:59.9]} 5. exd5 {[%clk
0:02:57.6]} 5... Na5 {[%clk 0:03:00.5]} 6. Bb5+ {[%clk 0:02:57.5]} 6... c6
{[%clk 0:03:01.1]} 7. dxc6 {[%clk 0:02:57.5]} 7... bxc6 {[%clk 0:03:02]} 8. Qf3
{[%clk 0:02:57.2]} 8... Be7 {[%clk 0:03:02]} 9. Bxc6+ {[%clk 0:02:57.1]} 9...
Nxc6 {[%clk 0:03:02.3]} 10. Qxc6+ {[%clk 0:02:57.2]} 10... Bd7 {[%clk
0:03:02.9]} 11. Qc4 {[%clk 0:02:56.9]} 11... O-O {[%clk 0:03:02.1]} 12. Nc3
{[%clk 0:02:56.5]} 12... Rc8 {[%clk 0:03:00.8]} 13. Qd3 {[%clk 0:02:56.2]} 13...
h6 {[%clk 0:02:42.4]} 14. Nge4 {[%clk 0:02:52.7]} 14... Nxe4 {[%clk 0:02:20.3]}
15. Nxe4 {[%clk 0:02:53.6]} 15... f5 {[%clk 0:02:13.2]} 16. Nc3 {[%clk
0:02:52.2]} 16... Kh8 {[%clk 0:02:05.9]} 17. O-O {[%clk 0:02:47.2]} 17... Bc5
{[%clk 0:01:50]} 18. Kh1 {[%clk 0:02:43.7]} 18... e4 {[%clk 0:01:48]} 19. Qe2
{[%clk 0:02:25.5]} 19... Qh4 {[%clk 0:01:40.9]} 20. f4 {[%clk 0:02:13.5]} 20...
exf3 {[%clk 0:01:30.5]} 21. Qxf3 {[%clk 0:02:01.8]} 21... Bc6 {[%clk 0:01:29.6]}
22. Qg3 {[%clk 0:01:48.8]} 22... Qf6 {[%clk 0:01:09.2]} 23. d3 {[%clk
0:01:44.9]} 23... g5 {[%clk 0:01:01.2]} 24. Bd2 {[%clk 0:01:36.5]} 24... Rb8
{[%clk 0:00:57.9]} 25. Rae1 {[%clk 0:01:21.6]} 25... Rxb2 {[%clk 0:00:46.7]} 26.
Qe5 {[%clk 0:01:08.1]} 26... Bd4 {[%clk 0:00:33.5]} 27. Qxf6+ {[%clk 0:00:47.6]}
27... Rxf6 {[%clk 0:00:33.5]} 28. Ne2 {[%clk 0:00:42.2]} 28... Rxc2 {[%clk
0:00:18.1]} 29. Bxg5 {[%clk 0:00:34.2]} 29... hxg5 {[%clk 0:00:13.4]} 30. Nxd4
{[%clk 0:00:25.3]} 30... Bxg2+ {[%clk 0:00:12.9]} 31. Kg1 {[%clk 0:00:25.2]}
31... Rxa2 {[%clk 0:00:10.6]} 32. Rxf5 {[%clk 0:00:24.1]} 32... Rxf5 {[%clk
0:00:08.5]} 33. Nxf5 {[%clk 0:00:24.5]} 33... Bh3 {[%clk 0:00:08.7]} 34. Ng3
{[%clk 0:00:20]} 34... Rg2+ {[%clk 0:00:08.4]} 35. Kh1 {[%clk 0:00:20.5]} 35...
Rd2 {[%clk 0:00:06]} 36. Ne4 {[%clk 0:00:20.4]} 36... Bg2+ {[%clk 0:00:03.7]}
37. Kg1 {[%clk 0:00:19.6]} 37... Bxe4 {[%clk 0:00:01.6]} 38. Rxe4 {[%clk
0:00:20]} 38... Rxd3 {[%clk 0:00:01.6]} 39. Re8+ {[%clk 0:00:20.6]} 1-0